Cogmind - Beta 16 @@@ ROGUE MODE // 2026.01.19 @ 12:27:57 Player: DreamCore Result: Destroyed by as-62812 with Assembled Heavy Rifle Performance ------------- Evolutions (0) 0 Regions Visited (0) 0 Robots Destroyed (1) 5 Value Destroyed (53) 53 Prototype IDs (0) 0 Alien Tech Used (0) 0 Bonus (0) 0 TOTAL SCORE: 58 Bonus ------- None Cogmind --------- Core Integrity 0/250 Matter 262/300 Energy 99/100 System Corruption 0% Temperature Cool (0) Movement Core (50) Location -11/Scrapyard Parts ------- > --- POWER (1) -------- (None) > --- PROPULSION (2) --- (None) > --- UTILITY (2) ------ (None) > --- WEAPON (2) ------- (None) > --- INVENTORY (5) ---- Light Ion Engine Light Treads Wheel Compact Wheel Assault Rifle Peak State ------------ > --- POWER ------------ Ion Engine > --- PROPULSION ------- Aluminum Leg Aluminum Leg > --- UTILITY ---------- Small Storage Unit > --- WEAPON ----------- Assault Rifle Light Assault Rifle > --- INVENTORY -------- Ion Engine Light Treads Light Treads Wheel Compact Wheel Assault Rifle [Rating: 6] Favorites ----------- Power Ion Engine Engine Ion Engine Propulsion Light Treads Treads Light Treads Leg Aluminum Leg Utility Small Storage Unit Storage Small Storage Unit Weapon Light Assault Rifle Ballistic Gun Light Assault Rifle Build | -11 ------- Run | Yrd Slots Evolved . | . Power . | . Propulsion . | . Utility . | . Weapon . | . Parts Attached 4 | 4 Power . | . Engine . | . Core . | . Reactor . | . Propulsion 4 | 4 Treads 2 | 2 Leg 2 | 2 Wheel . | . Hover . | . Flight . | . Utility . | . Device . | . Storage . | . Processor . | . Hackware . | . Protection . | . Artifact . | . Weapon . | . Energy Gun . | . Energy Cannon . | . Ballistic Gun . | . Ballistic Cannon . | . Launcher . | . Special Weapon . | . Impact Weapon . | . Slashing Weapon . | . Piercing Weapon . | . Special Melee Weapon . | . Unidentified Prototypes . | . Parts Lost 3 | 3 Power 1 | 1 Propulsion 1 | 1 Utility . | . Weapon 1 | 1 Highest Loss Streak 2 | 2 To Critical Strikes . | . Average Backups 5 | 5 Power 1 | 1 Propulsion 3 | 3 Utility . | . Weapon 1 | 1 Tool/Special . | . Unused Backups 10 | 10 Power 3 | 3 Propulsion 2 | 2 Utility 2 | 2 Weapon 3 | 3 Tool/Special . | . Average Slot Usage (%) . | . Peak Build Rating 6 | 6 Average Rating 5 | 5 On Entrance 6 | 6 Avg Prop Armor Cover (%) 10 | 10 Naked Turns . | . Heaviest Build 13 | 13 Greatest Support 40 | 40 Greatest Overweight (x) . | . Average Overweight (x) . | . Largest Inventory Capacity 8 | 8 Average Capacity 7 | 7 Most Carried 7 | 7 Average Carried 5 | 5 Final Capacity 5 | 5 Final Carried 5 | 5 Class Distribution -------------------- None Dominant Class ---------------- None Resources | -11 ----------- Run | Yrd Matter Collected 265 | 265 Remotely . | . Salvage Created 36 | 36 Parts . | . Haulers Intercepted . | . Recyclers Shooed . | . Parts Field Recycled . | . Retrieved Matter . | . Parts Self-Destructed . | . Prevented . | . Parts Restored . | . Kills | -11 ------- Run | Yrd Combat Hostiles Destroyed 4 | 4 Guns 4 | 4 Classes Destroyed 2 | 2 Demolisher 1 | 1 Assembled 3 | 3 Best Kill Streak 2 | 2 Combat Bots Only 2 | 2 Max Kills in Single Turn 1 | 1 Gunslinging . | . Exploded . | . Melee . | . Uniques/NPCs Destroyed . | . Combat | -11 -------- Run | Yrd Hostile Shots Fired 60 | 60 Missed 16 | 16 Hits 44 | 44 Melee 2 | 2 Projectile 42 | 42 AOE 10 | 10 Part Disruptions 2 | 2 Damage Taken 864 | 864 Core 255 | 255 Absorbed by Shields . | . Core Remaining (%) . | . Volleys Fired 20 | 20 Largest 2 | 2 Hottest 40 | 40 Shots Fired 40 | 40 Gun 40 | 40 Cannon . | . Launcher . | . Special . | . Kinetic 40 | 40 Thermal . | . Explosive . | . Electromagnetic . | . Robot Hit Streak 3 | 3 Robot Miss Streak 6 | 6 Penetration Max . | . Secondary Targets . | . Shots Hit Robots 15 | 15 Core Hits 10 | 10 Critical Kills . | . Critical Parts Destroyed . | . Critical Strikes . | . Melee Attacks . | . Impact . | . Slashing . | . Piercing . | . Sneak Attacks . | . Combat Hostiles . | . Follow-up Attacks . | . Damage Inflicted 166 | 166 Guns 166 | 166 Cannons . | . Explosions . | . Melee . | . Ramming . | . Kinetic 166 | 166 Thermal . | . Explosive . | . Electromagnetic . | . Impact . | . Slashing . | . Piercing . | . Highest Corruption . | . Average Corruption . | . Corruption Purged . | . Corruption Blocked . | . Overload Shots . | . Overflow Damage . | . Projectiles . | . Explosions . | . Melee . | . Knockbacks . | . Impact . | . Kinetic . | . Secondary . | . Self-Inflicted Damage . | . Shots . | . Rammed 1 | 1 Targets Rammed 1 | 1 Kicked . | . Crushed . | . Highest Temperature 20 | 20 Average Temperature 14 | 14 Received Heat Transfer 320 | 320 Siege Activations . | . Martial Activations . | . Shielding Activations . | . Robots Disrupted . | . Combat Hostiles . | . Robots Corrupted . | . Combat Hostiles . | . Parts Fried . | . Impact Corruptions . | . Robots Melted . | . Combat Hostiles . | . Parts Melted . | . Heat Transferred . | . Parts Sabotaged . | . Parts Stolen . | . Parts Stripped . | . Power Chain Reactions . | . Alert | -11 ------- Run | Yrd Maximum Alert Level . | . Low Security (%) 100 | 100 Level 1 . | . Level 2 . | . Level 3 . | . Level 4 . | . Level 5 . | . High Security . | . Max Security . | . Peak Influence 30 | 30 Initial . | . Average 1 | 1 Influence Increases 30 | 30 Destroy 0b10 Robot/C 20 | 20 Destroy Leader 10 | 10 Influence Decreases 30 | 30 Time Decay 25 | 25 Lost Part 5 | 5 Squads Dispatched . | . Investigation . | . Extermination . | . Reinforcement . | . Assault . | . Garrison . | . Intercept . | . Searches Triggered . | . Construction Impeded . | . Haulers Reinforced . | . Active Scanning Responses . | . Cargo Convoy Interrupts . | . Stealth | -11 --------- Run | Yrd Distress Signals . | . Communications Jammed . | . Distress Signals . | . Times Spotted 24 | 24 Peak Tracking Total 13 | 13 Tactical Retreats 1 | 1 Traps | -11 ------- Run | Yrd Traps Triggered . | . Indirectly . | . Trap Hack Attempts . | . Triggered . | . Disarmed . | . Reprogrammed . | . Reused . | . Traps Extracted . | . Installed . | . Triggered . | . Machines | -11 ---------- Run | Yrd Machines Disabled . | . Max in Single Turn . | . Machines Repaired . | . Machines Dismantled . | . Machines Sabotaged . | . Overloaded Fab Kills . | . Hacking | -11 --------- Run | Yrd Machines Accessed . | . Terminals . | . Fabricators . | . Repair Stations . | . Recycling Units . | . Scanalyzers . | . Garrison Access . | . Total Hacks . | . Successful . | . Failed . | . Catastrophic . | . Database Lockouts . | . Manual . | . Terminals . | . Fabricators . | . Repair Stations . | . Recycling Units . | . Scanalyzers . | . Garrison Access . | . Terminal Hacks . | . Fabricator Hacks . | . Repair Station Hacks . | . Recycling Unit Hacks . | . Scanalyzer . | . Garrison Access Hacks . | . Unauthorized Hacks . | . Terminals . | . Fabricators . | . Repair Stations . | . Recycling Units . | . Scanalyzers . | . Garrison Access . | . Data Cores Recovered . | . Used . | . Hacking Detections . | . Full Trace Events . | . Feedback Events . | . Feedback Blocked . | . Robot Schematics Acquired . | . Robots Built . | . Authchips . | . Time . | . Total Robot Build Rating . | . Part Schematics Acquired . | . Parts Built . | . Authchips . | . Time . | . Total Part Build Rating . | . Part Studies Acquired . | . Parts Repaired . | . Time . | . Parts Recycled . | . Recycled Matter . | . Retrieved Matter . | . Retrieved Components . | . Parts Scanalyzed . | . Part Schematics Acquired . | . Parts Damaged . | . Bothacking | -11 ------------ Run | Yrd Used RIF Installer . | . Robots Hacked . | . Non-combat . | . Combat . | . Robot Hacks Applied . | . Relay Couplers Released . | . Fabnet Peak Effective % . | . Robots Rewired . | . Allies Hacked . | . Hacks Repelled . | . Allies | -11 -------- Run | Yrd Total Allies . | . Largest Group . | . Highest-Rated Group . | . Highest-Rated Ally . | . Total Orders . | . Ally Attacks . | . Total Damage . | . Kills . | . Allies Corrupted . | . Allies Melted . | . Intel | -11 ------- Run | Yrd Active Infowar (turns) . | . Robot Analysis Total . | . Derelict Logs Recovered . | . Drone Launches . | . Drone Recoveries . | . Exploration | -11 ------------- Run | Yrd Turns Passed 3295 | 3295 Spaces Moved 1681 | 1681 Core 131 | 131 Treads 1367 | 1367 Legs 183 | 183 Wheels . | . Hover . | . Flight . | . Fastest Speed 50 | 50 Average Speed 147 | 147 Slowest Speed 160 | 160 Overloaded Moves . | . Propulsion Burnouts . | . Robots Hopped . | . Potential Cave-ins . | . Cave-ins Triggered . | . Exploration Rate (%) 111 | 111 Regions Visited . Branch Regions . Pre-discovered Areas . | . Known Exits Taken . | . Unknown Exits Taken . | . Scrap Searched . | . Spaces Dug . | . Terrain Destroyed . | . Melee . | . Projectile . | . AOE . | . Terrain Rammed . | . Walls Destroyed . | . Machines Disabled . | . Actions | -11 --------- Run | Yrd Total 2468 | 2468 Wait 756 | 756 Move 1681 | 1681 Hop . | . Pick Up 2 | 2 Fast Attach . | . Attach 1 | 1 Detach . | . Swap 3 | 3 Drop 4 | 4 Fire 20 | 20 Melee . | . Ram 1 | 1 Kick . | . Crush . | . Escape Stasis . | . Rewire . | . Trap . | . Miscellaneous . | . Route ------- -11/Scrapyard (discovered 1 exit: [*Mat]) History --------- Turn | Location | Event 1 | -11/Scrapyard | Discovered new exit (range 1) 2600 | -11/Scrapyard | Assembled infested the area 3048 | -11/Scrapyard | Core integrity fell below 50% 3293 | -11/Scrapyard | Core integrity fell below 20% 3296 | -11/Scrapyard | Destroyed by as-62812 with Assembled Heavy Rifle Last Messages --------------- 02636_ The unstable cave ceiling collapses. 02636_ K-01 Serf collects debris. 02851_ T-07 Excavator is excavating. 02926_ Lgt. Treads destroyed. 02931_ as-17423 destroyed. 02937_ Acquired 15 matter. 02959_ Acquired Imp. Terrain Scanner. 02960_ Acquired 20 matter. 02962_ Acquired Lgt. Ion Engine. 03006_ as-44408 destroyed. 03017_ as-17567 destroyed. 03024_ Acquired 10 matter. 03029_ Ion Engine destroyed. 03042_ Assault Rifle destroyed. 03045_ Dropped Aluminum Leg. 03046_ Dropped Sml. Storage Unit. 03046_ Knocked back. 03046_ Dropped Lgt. Assault Rifle. 03047_ as-38281 destroyed. 03293_ Slammed into as-73090. Map ----- +----------------------------------------------------+ | ###### #? ##### ## ## #????? | | # #???### ### ## #????? | | # ###########?# ############????? | | ###### ## #?# #???????????????? | | ?????# # #?# #?# #???????????????? | | ?????# ##########?# #?# #???????????????? | | ?????# #? #???# #?# #???????????????? | | ###### #? #???# #?# #???????????????? | | # # #???# #?# #???????????????? | | # # #???# #?# #???????????????? | | #???# #?# ##########??????? | | # # #???# #?# ## #??????? | | # ########???##### ####?# # #??????? | | # ########### ##### # #??????? | | ###### # #| #??????? | | ?????# # # *=%! #??????? | | ?????# # #####%##* #??????? | | ?????# ## ## =!# #??????? | | ?????# ## ## # #??????? | | ?????# ## ## # #??????? | | ??#### ### ########### ## ##########??????? | | ??# ![ # ##???????# ## #???????????????? | | ??# == # ##???????# ## #???????????????? | | ??#*!% ############a ### ## ##########???????? | | ### !% a ! aa # # #???????? | | *%! @ #???????? | | # ##### # ###### # #???????? | | ### < # #?# # #???????? | | ??# # #?# # #???????? | | ??########## # #?# #???????? | | ###????????# # ### # #???????? | | #????????# # # #???????? | | #????????# # ### # #???????? | | #????????######## #?# ##########???????? | | #???????????????# #?# # ###????????? | | #???????????????# #?# # #????????? | | #??????????###############?# #????????? | | ###??????????# #??????# # #????????? | | ?????????????# ######## ##????????? | | ?????????????# ########?????????? | | ?????????????# ######## #####?????????????? | | ?????????????# #??# #?????????????? | | ?????????????# #??# #?????????????? | | ?????????????# #??# #?????????????? | | ?????????????# #??# #?????????????? | | ????????# #??# #?????????????? | | ????????##### ####??# #?????????????? | | #??######### #?????# #?????????????? | | #??# ## #?????# #?????????????? | | #??# ## #?????###########?????????????? | +----------------------------------------------------+ Best States ------------- Heat Dissipation 25 Energy Generation 10 Energy Capacity 250 Matter Stores 300 Matter Capacity 300 Sight Range 16 Terrain Scan Density 10 Evasion (%) 55 Recoil Reduction 2 Item Schematics ----------------- None Robot Schematics ------------------ None Fabricated ------------ Nothing Repaired ---------- Nothing Studied --------- None Alien Tech Used ----------------- None Achievements -------------- Curiosity Killed The Cat Challenges ------------ None Game ------ Seed ActiveFactoryMiniperforator Manual? 0 Play Time 00:15:36 Cumulative 65.7 hours Start 2026.01.19 @ 12:19:41 End 2026.01.19 @ 12:27:57 Sessions 0 Manual Loads 0 Difficulty Rogue Special Mode None Game No. 77 Rogue 77 Adventurer 0 Explorer 0 Win Type - Total 1 Types 1/0/0/0/0/0/0/0/0/0 Lore% 26 Gallery% 35 Achievement% 26 Wizard Run 0 Options --------- Layout 0 ASCII 0 Keyboard 0 Movement Mouse Keybinds 0 Fullscreen 0 Font 16/SmallcapsGlow Map View 88x55 Zoom Use 0% Tactical HUD 1 Map Filters NONE Filters NONE Steam 1 RUN: e93365ec-8d67-463e-972a-197fa57e3163